bitfinex-derivatives/quotes_SOLF0:USTF0_20241217
["timestamp","ask_amount","ask_price","bid_price","bid_amount"]
[1734445563543,10.72603748,222.15,222.07,2.32]
[1734445563742,10.72603748,222.15,222.11,2.2512]
[1734445564144,10.72603748,222.15,222.07,2.32]
[1734445564944,2.251,222.13,222.07,4.5715]
[1734445565535,2.251,222.13,222.07,2.32]
[1734445565740,2.2512,222.11,222.07,2.32]
[1734445566042,10.72603748,222.12,222.05,2.32]
[1734445566642,5.46079197,222.16,222.07,2.2515]
[1734445566845,2.251,222.13,222.05,2.32]
[1734445567541,12.97693748,222.15,222.09,2.2514]
[1734445567745,10.72603748,222.15,222.09,2.2514]
[1734445568943,10.72603748,222.15,222.08,2.2515]
[1734445568944,12.97683748,222.15,222.08,2.2515]
[1734445569143,12.97683748,222.15,222.05,2.32]
[1734445569344,10.72603748,222.15,222.05,2.32]
[1734445569941,6.85575934,222.12,222.05,2.32]
[1734445570345,6.85575934,222.08,222.05,2.32]
[1734445571140,6.85575934,222.08,222.06,2.2516]
[1734445571350,6.85575934,222.08,222.05,2.32]
[1734445571648,2.2512,222.12,222.07,2.2516]
[1734445571853,6.85575934,222.1,222.05,2.32]
[1734445572248,6.85575934,222.08,222.06,2.2516]
[1734445573249,6.85575934,222.08,222.06,4.5716]
[1734445573946,6.85575934,222.08,222.06,2.32]
[1734445574153,6.85575934,222.08,222.04,2.2518]
[1734445574550,6.85575934,222.06,222.04,2.2518]
[1734445574754,6.85575934,222.08,222.05,2.2517]
[1734445575055,6.85575934,222.11,222.03,9.17575934]
[1734445575256,6.85575934,222.09,222.03,2.32]
[1734445577560,2.2514,222.1,222.07,2.2516]
[1734445578258,5.46079197,222.16,222.09,2.2514]
[1734445578457,6.85575934,222.12,222.08,2.32]
[1734445578653,6.85575934,222.1,222.08,2.32]
[1734445579056,6.85575934,222.1,222.01,1.6055]
[1734445579255,2.252,222.03,222.0,2.2523]
[1734445579459,2.252,222.03,221.99,2.32]
[1734445579761,9.10785934,222.02,221.99,2.32]
[1734445579956,2.32,222.13,221.99,2.32]
[1734445580157,6.85575934,222.04,221.96,3.349]
[1734445580465,9.10765934,222.04,222.0,2.2523]
[1734445581358,2.32,222.13,221.98,2.2525]
[1734445581558,6.85575934,222.0,221.96,2.32]
[1734445581761,6.85575934,222.0,221.92,77.07654814]
[1734445581961,6.85575934,221.98,221.94,2.2528]
[1734445582167,6.85575934,221.98,221.94,4.5728]
[1734445582365,6.85575934,221.98,221.91,1.6596]
[1734445582665,6.85575934,221.98,221.92,2.32]
[1734445583364,6.85575934,221.96,221.89,1.717]
[1734445583566,6.85575934,221.92,221.86,24.28213331]
[1734445583768,9.10885934,221.92,221.87,2.32]
[1734445583958,6.85575934,221.9,221.84,18.69943331]
[1734445584163,6.85575934,221.9,221.85,2.32]
[1734445584663,2.2535,221.89,221.83,2.254]
[1734445584858,6.85575934,221.88,221.84,2.32]
[1734445585062,6.85575934,221.92,221.85,6.85575934]
[1734445585259,6.85575934,221.92,221.88,2.2535]
[1734445585460,6.85575934,221.92,221.85,6.85575934]
[1734445585660,6.85575934,221.88,221.82,44.1938307]
[1734445585971,10.73486185,221.91,221.81,2.32]
[1734445586470,10.73486185,221.91,221.8,1.6031]
[1734445586764,10.73486185,221.91,221.81,2.32]
[1734445587662,2.2542,221.82,221.78,2.32]
[1734445588062,10.73486185,221.85,221.74,2.32]
[1734445588274,2.2545,221.79,221.74,2.32]
[1734445588568,10.73486185,221.82,221.73,2.32]
[1734445588866,2.2546,221.78,221.73,2.32]
[1734445589073,2.2546,221.78,221.7,5.29338932]
[1734445589268,10.73486185,221.82,221.71,2.32]
[1734445589670,1.6977,221.84,221.71,2.32]
[1734445590570,1.6977,221.84,221.72,10.73486185]
[1734445590774,10.73486185,221.85,221.77,2.2546]
[1734445591072,10.73486185,221.85,221.76,2.32]
[1734445591274,10.73486185,221.85,221.76,4.5747]
[1734445591979,10.73486185,221.85,221.76,2.32]
[1734445592271,3.9552,221.87,221.76,2.32]
[1734445592272,1.6352,221.87,221.76,2.32]
[1734445592775,10.73486185,221.91,221.78,10.73486185]
[1734445593073,1.6348,221.93,221.79,1.71]
[1734445593268,3.8879,221.93,221.85,2.2538]
[1734445593471,10.73486185,221.88,221.79,3.3665]
[1734445593674,10.73486185,221.91,221.79,3.3665]
[1734445593874,1.6348,221.93,221.79,3.3665]
[1734445594075,2.2533,221.91,221.79,3.3665]
[1734445594667,1.6348,221.93,221.79,3.3665]
[1734445594871,10.73486185,222.0,221.84,10.73486185]
[1734445595174,10.73486185,222.0,221.85,2.32]
[1734445595175,2.2526,221.98,221.85,2.32]
[1734445595378,10.73486185,221.97,221.85,2.32]
[1734445596176,10.73486185,221.94,221.85,2.32]
[1734445596373,10.73486185,221.94,221.8,10.73486185]
[1734445596578,10.73486185,221.94,221.81,2.32]
[1734445596876,2.2533,221.9,221.85,2.2538]
[1734445597077,10.73486185,221.91,221.86,2.32]
[1734445597271,10.73486185,221.88,221.84,2.32]
[1734445597474,10.73486185,221.88,221.79,3.3665]
[1734445597672,2.254,221.84,221.8,2.32]
[1734445598074,10.73486185,221.88,221.8,2.32]
[1734445598279,10.73486185,221.85,221.77,2.2546]
[1734445598470,10.73486185,221.85,221.78,2.32]
[1734445598674,10.73486185,221.82,221.75,4.5749]
[1734445598972,10.73486185,221.82,221.76,2.32]
[1734445599574,2.2542,221.81,221.76,2.32]
[1734445599769,10.73486185,221.82,221.69,5.40543877]
[1734445600073,2.2544,221.8,221.74,2.2549]
[1734445600376,10.73486185,221.85,221.75,2.32]
[1734445600572,10.73486185,221.85,221.76,2.32]
[1734445600974,10.73486185,221.88,221.76,2.32]
[1734445601379,12.98846185,221.88,221.81,2.2542]
[1734445601581,10.73486185,221.88,221.81,4.5742]
[1734445601974,10.73486185,221.88,221.82,2.254]
[1734445602279,10.73486185,221.88,221.81,2.32]
[1734445602472,2.2537,221.87,221.81,2.32]
[1734445602670,10.73486185,221.85,221.73,2.32]
[1734445603069,2.2543,221.81,221.75,2.2548]
[1734445603270,10.73486185,221.82,221.75,2.2548]
[1734445604273,2.2545,221.79,221.74,4.575]
[1734445605175,10.73486185,221.82,221.7,1.6501]
[1734445605375,10.73486185,221.82,221.68,3.3929]
[1734445605376,10.73486185,221.82,221.72,4.6752]
[1734445605679,1.7057,221.81,221.72,4.6752]
[1734445605880,10.73486185,221.79,221.72,4.6752]
[1734445606277,3.3559,221.81,221.72,2.2552]
[1734445606473,10.73486185,221.79,221.72,2.2552]
[1734445606972,2.2546,221.78,221.72,2.2552]
[1734445607177,2.2546,221.78,221.73,2.2551]
[1734445611280,10.73486185,221.79,221.71,2.2552]
[1734445611681,2.2549,221.76,221.71,2.2552]
[1734445613179,10.73486185,221.79,221.71,2.2552]
[1734445613781,2.2549,221.75,221.71,2.2552]
[1734445613975,2.2549,221.75,221.68,2.42]
[1734445613976,11.2525,222.19,221.78,2.2545]
[1734445614176,10.73486185,221.85,221.76,2.42]
[1734445614381,12.98876185,221.85,221.76,2.42]
[1734445614781,10.73486185,221.85,221.76,2.42]
[1734445615682,2.254,221.83,221.79,2.2544]
[1734445616279,10.73486185,221.85,221.72,2.42]
[1734445616475,10.73486185,221.85,221.71,2.42]
[1734445617387,2.2544,221.8,221.76,2.2547]
[1734445617587,10.73486185,221.85,221.71,2.42]
[1734445617880,2.2546,221.78,221.75,2.2548]
[1734445618188,10.73486185,221.82,221.75,2.2548]
[1734445618389,10.73486185,221.82,221.71,2.42]
[1734445618581,2.2546,221.78,221.71,2.42]
[1734445618886,10.73486185,221.82,221.67,1.7174]
[1734445619187,2.2546,221.78,221.68,2.42]
[1734445619681,2.2546,221.78,221.74,2.2549]
[1734445619889,2.2544,221.8,221.73,2.42]
[1734445620085,2.2544,221.8,221.74,2.42]
[1734445620284,10.73486185,221.85,221.8,2.2543]
[1734445620478,10.73486185,221.85,221.74,2.42]
[1734445620986,10.73486185,221.85,221.76,2.2547]
[1734445621186,2.2544,221.8,221.76,2.2547]
[1734445621890,10.73486185,221.85,221.74,2.42]
[1734445622283,10.73486185,221.82,221.74,2.42]
[1734445622487,10.73486185,221.82,221.75,2.2548]
[1734445622987,2.2544,221.8,221.75,2.2548]
[1734445623188,10.73486185,221.82,221.75,2.2548]
[1734445623581,2.2546,221.78,221.75,2.2548]
[1734445624085,2.2548,221.76,221.72,2.42]
[1734445624987,10.73486185,221.79,221.67,1.7174]
[1734445625185,2.2549,221.75,221.71,2.2552]
[1734445625986,2.2549,221.76,221.69,2.42]
[1734445626386,2.2549,221.76,221.71,2.2553]
[1734445626589,2.2549,221.76,221.69,2.42]
[1734445626783,2.2549,221.75,221.67,1.7174]
[1734445626993,2.2549,221.75,221.68,2.42]
[1734445627189,2.2549,221.75,221.72,2.2551]
[1734445627489,2.2547,221.77,221.68,2.42]
[1734445627685,10.73486185,221.79,221.72,2.2551]
[1734445628388,10.73486185,221.79,221.73,2.2551]
[1734445628389,2.2547,221.77,221.73,2.2551]
[1734445628691,10.73486185,221.79,221.73,2.2551]
[1734445629086,10.73486185,221.79,221.68,2.42]
[1734445629589,10.73486185,221.82,221.77,2.2546]
[1734445630090,2.2543,221.81,221.74,2.42]
[1734445630290,2.2543,221.81,221.78,2.2545]
[1734445630889,12.98896185,221.82,221.78,2.2545]
[1734445631495,2.254,221.84,221.8,2.2542]
[1734445631791,10.73486185,221.85,221.74,2.42]
[1734445632300,12.98876185,221.85,221.8,2.2542]
[1734445632696,12.98876185,221.85,221.79,2.42]
[1734445632896,2.254,221.84,221.79,2.42]
[1734445633293,10.73486185,221.85,221.75,2.42]
[1734445633597,2.2543,221.81,221.76,2.2547]
[1734445633795,10.73486185,221.85,221.76,2.2547]
[1734445633996,10.73486185,221.85,221.75,2.42]
[1734445634197,2.2542,221.82,221.77,2.2546]
[1734445634601,2.2543,221.81,221.77,2.2546]
[1734445634791,10.73486185,221.82,221.75,2.42]
[1734445634996,10.73486185,221.82,221.75,4.6748]
[1734445635293,10.73486185,221.85,221.75,2.42]
[1734445635998,2.254,221.84,221.79,2.2544]
[1734445636197,2.254,221.84,221.75,2.42]
[1734445636894,2.254,221.84,221.8,2.2543]
[1734445637095,10.73486185,221.88,221.8,2.38]
[1734445637604,2.2538,221.85,221.81,2.2542]
[1734445638605,2.2537,221.87,221.82,2.2541]
[1734445638804,2.2537,221.87,221.8,2.38]
[1734445639100,10.73486185,221.88,221.8,2.38]
[1734445639301,12.98846185,221.88,221.84,2.2539]
[1734445639508,12.98846185,221.88,221.8,2.38]
[1734445639707,10.73486185,221.91,221.81,4.26684353]
[1734445639903,1.6347,221.95,221.8,21.07943331]
[1734445640108,10.73486185,221.93,221.81,40.03328559]
[1734445640302,10.73486185,221.93,221.82,22.96623681]
[1734445640513,10.73486185,221.93,221.81,18.69943331]
[1734445640703,10.73486185,221.93,221.82,4.26380459]
[1734445640903,2.2533,221.91,221.86,2.2537]
[1734445641099,2.2533,221.91,221.85,2.38]
[1734445642303,16.24584465,221.93,221.85,2.38]
[1734445642507,2.2533,221.9,221.85,4.6338]
[1734445642809,16.24584465,221.93,221.85,4.6338]
[1734445643006,2.2534,221.9,221.85,4.6338]
[1734445643209,16.24584465,221.93,221.85,4.6338]
[1734445643604,2.2534,221.9,221.85,4.6338]
[1734445644011,16.24584465,221.93,221.85,4.6338]
[1734445644211,16.24584465,221.93,221.85,2.38]
[1734445644212,2.2537,221.86,221.85,2.38]
[1734445645906,10.73486185,221.9,221.85,2.38]
[1734445646106,10.73486185,221.86,221.77,1.6867]
[1734445646408,2.2543,221.81,221.77,2.38]
[1734445646614,10.73486185,221.83,221.77,2.38]
[1734445647002,2.2543,221.81,221.77,2.38]
[1734445647706,10.73486185,221.83,221.77,2.38]
[1734445648608,10.73486185,221.83,221.73,1.7075]
[1734445648808,10.73486185,221.8,221.74,2.38]
[1734445649112,2.2547,221.77,221.74,2.38]
[1734445651306,10.73486185,221.8,221.71,1.6101]
[1734445651512,2.2546,221.78,221.72,2.38]
[1734445651711,10.73486185,221.8,221.75,2.2548]
[1734445652517,2.2546,221.78,221.75,2.2548]
[1734445653113,10.73486185,221.83,221.75,2.2548]
[1734445653415,10.73486185,221.83,221.76,2.2548]
[1734445654509,10.73486185,221.83,221.75,2.2549]
[1734445655321,10.73486185,221.8,221.72,2.38]
[1734445655619,2.2547,221.77,221.72,4.6351]
[1734445655913,10.73486185,221.8,221.7,0.17676]
[1734445656114,10.73486185,221.8,221.71,4.6353]
[1734445656319,10.73486185,221.8,221.71,2.38]
[1734445656716,10.73486185,221.83,221.71,2.38]
[1734445656918,10.73486185,221.83,221.72,4.2595382]
[1734445657120,10.73486185,221.83,221.71,21.07943331]
[1734445657316,2.2544,221.8,221.75,2.2548]
[1734445657619,10.73486185,221.83,221.71,2.38]
[1734445657810,2.38,221.85,221.74,2.2549]
[1734445657811,2.2546,221.78,221.74,2.2549]
[1734445658015,2.2546,221.78,221.7,0.17676]
[1734445658625,2.2547,221.77,221.7,0.17676]
[1734445659028,2.2547,221.77,221.73,2.255]
[1734445659524,2.2547,221.77,221.74,2.2549]
[1734445660631,2.2545,221.79,221.75,2.2548]
[1734445660822,10.73486185,221.83,221.7,20.55919331]
[1734445661022,10.73486185,221.83,221.71,4.25946124]
[1734445661232,10.73486185,221.83,221.72,4.25933757]
[1734445661532,10.73486185,221.86,221.73,39.99663902]
[1734445661727,10.73486185,221.86,221.74,6.63943235]
[1734445661932,2.254,221.84,221.81,2.2542]
[1734445664330,12.98866185,221.86,221.82,2.2541]
[1734445664932,2.254,221.84,221.8,2.2543]
[1734445665134,10.73486185,221.86,221.79,2.38]
[1734445665327,10.73486185,221.83,221.75,1.6967]
[1734445665630,10.73486185,221.83,221.73,2.34]
[1734445666528,2.2545,221.79,221.75,2.2548]
[1734445667529,2.2545,221.79,221.76,2.2547]
[1734445667829,10.73486185,221.83,221.73,2.34]
[1734445669125,2.2543,221.81,221.77,2.2546]
[1734445670326,2.2542,221.82,221.73,2.34]
[1734445670636,10.73486185,221.86,221.74,40.00316527]
[1734445670931,2.2539,221.85,221.82,2.2541]
[1734445671233,10.73486185,221.89,221.79,2.34]
[1734445671932,2.2538,221.86,221.79,2.34]
[1734445673237,2.2538,221.86,221.82,2.2541]
[1734445674231,10.73486185,221.89,221.86,2.2537]
[1734445674535,10.73486185,221.92,221.84,2.34]
[1734445674735,10.73486185,221.92,221.85,2.34]
[1734445675237,10.73486185,221.92,221.87,2.2536]
[1734445675833,2.2532,221.91,221.87,2.2536]
[1734445676532,10.73486185,221.92,221.85,2.34]
[1734445676737,10.73486185,221.95,221.85,2.34]
[1734445677243,10.73486185,221.95,221.86,4.25795717]
[1734445677434,2.2526,221.97,221.83,60.60001734]
[1734445677435,10.73486185,221.98,221.84,18.69943331]
[1734445677629,10.73486185,221.98,221.85,6.59598673]
[1734445677835,10.73486185,221.98,221.85,2.34]
[1734445678240,2.2526,221.97,221.85,2.34]
[1734445678536,2.2526,221.97,221.86,4.25443187]
[1734445678733,12.98736185,221.98,221.91,2.2531]
[1734445678936,10.73486185,221.98,221.92,2.34]
[1734445679232,2.253,221.94,221.92,2.34]
[1734445679436,10.73486185,221.98,221.92,2.34]
[1734445679936,2.2527,221.97,221.92,4.5931]
[1734445680131,10.73486185,221.98,221.92,2.34]
[1734445681136,12.98746185,221.98,221.93,2.2529]
[1734445681529,10.73486185,221.98,221.93,2.2529]
[1734445681738,10.73486185,221.98,221.92,2.34]
[1734445682833,12.98746185,221.98,221.93,2.253]
[1734445683236,10.73486185,221.98,221.92,2.34]
[1734445683537,4.9645,222.07,221.92,2.34]
[1734445683735,10.73486185,222.04,221.92,2.34]
[1734445683935,10.73486185,222.04,221.93,3.3395]
[1734445684135,12.98686185,222.04,221.98,2.2525]
[1734445684331,12.98686185,222.04,221.99,2.34]
[1734445684536,10.73486185,222.04,221.99,2.34]
[1734445685542,5.38885683,222.06,221.99,2.34]
[1734445686437,2.2518,222.05,222.0,2.2523]
[1734445687037,10.73486185,222.09,221.99,2.34]
[1734445687834,1.6285,222.14,221.99,13.07486185]
[1734445688142,2.2509,222.14,222.09,2.2514]
[1734445688340,10.73486185,222.15,222.09,2.34]
[1734445688942,10.73486185,222.15,222.09,4.5914]
[1734445689134,10.73486185,222.15,222.09,2.34]
[1734445691939,10.73486185,222.14,222.09,2.34]
[1734445692837,10.73486185,222.17,222.09,2.34]
[1734445693038,2.2508,222.16,222.11,2.2512]
[1734445694344,10.73486185,222.17,222.11,2.2512]
[1734445694543,2.2508,222.15,222.11,2.2512]
[1734445694743,2.2508,222.15,222.1,2.2513]
[1734445695443,2.2509,222.14,222.1,2.2513]
[1734445695639,10.73486185,222.17,222.02,10.73486185]
[1734445695841,10.73486185,222.14,222.07,2.2516]
[1734445696242,10.73486185,222.14,222.08,2.32]
[1734445696744,2.2512,222.12,222.08,2.32]
[1734445696942,10.73486185,222.14,222.08,2.32]
[1734445697245,10.73486185,222.11,222.0,1.7114]
[1734445697450,10.73486185,222.11,222.01,2.32]
[1734445697641,10.73486185,222.11,222.02,2.32]
[1734445697941,10.73486185,222.11,222.03,2.32]
[1734445699046,2.2518,222.06,222.03,2.32]
[1734445699242,10.73486185,222.08,222.02,2.32]
[1734445699442,2.2522,222.02,222.0,2.32]
[1734445699643,2.32,222.12,221.96,3.4087]
[1734445699644,10.73486185,222.05,221.96,3.4087]
[1734445699935,10.73486185,222.05,221.97,2.32]
[1734445700142,10.73486185,222.08,221.97,2.32]
[1734445700743,1.7384,222.1,221.97,2.32]
[1734445702149,2.2517,222.07,222.02,2.252]
[1734445702342,2.2517,222.07,222.03,2.32]
[1734445703443,1.7384,222.1,222.03,2.32]
[1734445704348,2.2515,222.09,222.05,2.2518]
[1734445706547,10.73486185,222.11,222.03,4.5719]
[1734445706849,2.32,222.15,222.03,2.32]
[1734445707050,10.73486185,222.12,222.05,2.2518]
[1734445707449,10.73486185,222.09,222.03,2.32]
[1734445708053,2.2517,222.07,222.03,2.32]
[1734445708454,2.2517,222.07,222.03,4.572]
[1734445708949,2.2515,222.09,222.03,2.32]
[1734445709153,10.73486185,222.14,222.05,2.2517]
[1734445710052,6.85743077,222.1,222.05,2.2517]
[1734445710354,2.2514,222.09,222.05,2.2517]
[1734445712648,2.32,222.15,222.06,2.2517]
[1734445712956,6.85743077,222.11,222.03,9.17743077]
[1734445713350,6.85743077,222.11,222.05,2.2518]
[1734445713660,7.3148,222.18,222.04,2.32]
[1734445713661,6.85743077,222.09,222.04,2.32]
[1734445713851,6.85743077,222.07,222.04,2.32]
[1734445714050,6.85743077,222.07,222.04,4.5719]
[1734445714955,4.9948,222.18,222.05,2.2518]
[1734445715256,6.85743077,222.08,222.05,2.2518]
[1734445715855,6.85743077,222.08,222.06,2.2517]
[1734445717353,6.85743077,222.08,222.05,2.2518]
[1734445717758,6.85743077,222.08,222.04,2.32]
[1734445717954,2.32,222.17,222.04,2.32]
[1734445717955,2.2517,222.06,222.04,2.32]
[1734445718156,6.85743077,222.06,222.01,2.32]
[1734445718357,6.85743077,222.04,222.01,2.32]
[1734445718558,2.252,222.03,222.01,2.32]
[1734445718861,6.85743077,222.04,221.95,51.54]
[1734445719056,6.85743077,222.04,221.96,9.17743077]
[1734445719661,2.2519,222.05,222.01,2.2521]
[1734445719961,2.2519,222.05,222.02,2.32]
[1734445720461,2.2519,222.04,222.01,4.5721]
[1734445720960,2.2518,222.05,222.01,4.5721]
[1734445722858,6.85743077,222.04,222.01,2.32]
[1734445724064,2.2521,222.02,221.98,2.2525]
[1734445724367,2.2521,222.02,221.99,2.32]
[1734445724958,2.2521,222.02,221.98,2.2525]
[1734445724959,2.2522,222.02,221.98,2.2525]
[1734445725262,6.85743077,222.04,221.9,3.3152]
[1734445725460,6.85743077,222.0,221.9,3.3152]
[1734445725664,6.85743077,221.96,221.88,6.85743077]
[1734445725863,6.85743077,221.96,221.89,2.32]
[1734445726058,6.85743077,221.96,221.89,4.5734]
[1734445726059,2.2529,221.94,221.89,4.5734]
[1734445726264,2.2529,221.94,221.89,2.32]
[1734445726563,2.32,222.03,221.92,6.85743077]
[1734445726763,6.85743077,222.01,221.97,2.2526]
[1734445726957,4.9877,222.04,221.96,9.17743077]
[1734445727157,8.57503077,222.04,221.97,2.32]
[1734445727858,6.85743077,222.04,221.97,2.32]
[1734445728668,9.10943077,222.04,221.99,2.2524]
[1734445728961,6.85743077,222.04,221.99,2.2524]
[1734445729158,6.85743077,222.04,221.97,2.32]
[1734445729363,9.10933077,222.04,221.99,2.2524]
[1734445729966,2.252,222.03,221.99,2.2524]
[1734445730362,9.10913077,222.06,221.98,6.85743077]
[1734445730772,6.85743077,222.06,222.01,2.2521]
[1734445731071,6.85743077,222.06,222.02,2.32]
[1734445731274,2.2519,222.05,222.02,2.32]
[1734445733375,2.2518,222.05,222.02,2.32]
[1734445733768,2.32,222.13,222.02,2.32]
[1734445733969,9.10913077,222.07,222.03,2.252]
[1734445734177,6.85743077,222.07,222.02,2.32]
[1734445734675,2.2518,222.05,222.02,4.5721]
[1734445734973,6.85743077,222.09,222.02,9.17743077]
[1734445735169,6.85743077,222.09,222.02,2.32]
[1734445735365,2.2517,222.06,222.03,2.252]
[1734445735875,2.2516,222.08,222.03,2.252]
[1734445736276,6.85743077,222.07,222.03,2.252]
[1734445736475,2.2517,222.06,222.03,2.32]
[1734445738977,6.85743077,222.07,222.03,2.32]
[1734445739181,2.2518,222.06,222.03,2.32]
[1734445739378,2.2518,222.06,222.03,4.572]
[1734445741175,6.85743077,222.05,222.03,2.32]
[1734445741578,2.32,222.14,222.03,2.32]
[1734445741579,6.85743077,222.07,222.03,2.32]
[1734445741977,2.2517,222.06,222.03,2.32]
[1734445742172,1.7176,222.17,222.03,2.32]
[1734445742173,2.32,222.13,222.03,2.32]
[1734445742383,6.85743077,222.09,222.03,2.32]
[1734445742578,6.85743077,222.09,222.05,2.2518]
[1734445742880,6.85743077,222.09,222.03,2.32]
[1734445743680,6.85743077,222.08,222.04,2.2519]
[1734445744884,9.10893077,222.08,222.04,2.2519]
[1734445745692,2.2517,222.07,222.03,4.5719]
[1734445746987,2.2517,222.07,222.04,2.2519]
[1734445748488,6.85743077,222.08,222.04,2.2519]
[1734445748689,9.10903077,222.08,222.04,2.2519]
[1734445750187,9.10903077,222.08,222.05,2.2518]
[1734445750491,9.10903077,222.08,222.03,2.32]
[1734445750690,2.2516,222.08,222.03,2.32]
[1734445750886,2.2516,222.08,222.04,2.2518]
[1734445751289,2.251,222.13,222.03,2.32]
[1734445751489,6.85743077,222.12,222.07,2.2516]
[1734445751789,6.85743077,222.13,222.08,2.32]
[1734445751992,2.2512,222.12,222.08,4.5715]
[1734445752690,9.10863077,222.11,222.07,4.5716]
[1734445753382,2.2513,222.1,222.07,4.5716]
[1734445754587,9.10863077,222.11,222.07,4.5716]
[1734445755593,6.85743077,222.11,222.07,2.32]
[1734445755788,5.3806128,222.14,222.07,2.32]
[1734445755985,6.85743077,222.1,222.07,2.32]
[1734445756997,9.10873077,222.1,222.07,2.32]
[1734445758795,9.10873077,222.1,222.07,4.5716]
[1734445759098,6.85743077,222.12,222.07,2.32]
[1734445759693,2.2515,222.08,222.07,2.32]
[1734445761594,9.10883077,222.1,222.07,2.32]
[1734445762092,9.10883077,222.1,222.07,4.5716]
[1734445762592,2.2514,222.09,222.07,4.5716]
[1734445762991,5.40986708,222.15,222.07,2.32]
[1734445762992,6.85743077,222.08,222.07,2.32]
[1734445763398,2.2517,222.07,222.04,2.32]
[1734445764097,2.2517,222.07,222.04,4.5719]
[1734445764297,2.2517,222.06,222.04,4.5719]
[1734445764796,2.2517,222.06,222.04,2.2519]
[1734445764986,6.85743077,222.08,222.03,2.32]
[1734445765189,6.85743077,222.06,222.02,2.2521]
[1734445765393,6.85743077,222.06,222.02,4.5721]
[1734445765998,2.2519,222.05,222.02,4.5721]
[1734445766699,6.85743077,222.06,222.02,2.32]
[1734445766700,2.2519,222.04,222.02,2.32]
[1734445767204,2.2518,222.05,222.02,4.5721]
[1734445768896,2.2519,222.04,222.02,2.32]
[1734445769201,6.85743077,222.04,221.96,2.32]
[1734445769403,4.502,222.14,221.96,2.32]
[1734445769404,2.2526,221.98,221.96,2.32]
[1734445769594,2.2526,221.98,221.94,2.2529]
[1734445769595,2.2526,221.98,221.94,4.5729]
[1734445770297,2.2528,221.96,221.92,2.253]
[1734445770597,6.85743077,221.96,221.88,1.725]
[1734445770796,6.85743077,221.94,221.89,2.32]
[1734445771100,2.2533,221.9,221.89,2.32]
[1734445771402,6.85743077,221.93,221.85,6.85743077]
[1734445771702,6.85743077,221.93,221.88,2.32]
[1734445771904,9.11053077,221.93,221.88,4.5735]
[1734445772501,2.2528,221.95,221.88,2.32]
[1734445772796,2.2528,221.95,221.88,9.17743077]
[1734445774105,2.2528,221.95,221.88,2.32]
[1734445774298,2.2528,221.95,221.88,9.17743077]
[1734445774501,2.2528,221.95,221.91,2.2532]
[1734445775504,2.2525,221.99,221.92,6.85743077]
[1734445775706,2.2525,221.99,221.93,2.32]
[1734445776501,2.2525,221.99,221.95,2.2527]
[1734445777003,9.10973077,222.0,221.93,2.32]
[1734445778102,6.85743077,222.0,221.93,2.32]
[1734445778309,2.2527,221.96,221.93,2.32]
[1734445780406,5.31318623,222.03,221.93,2.32]
[1734445780712,5.31318623,222.03,221.93,9.17743077]
[1734445780713,6.85743077,222.0,221.93,9.17743077]
[1734445781603,9.10973077,222.0,221.95,2.2528]
[1734445781804,6.85743077,222.0,221.93,9.17743077]
[1734445782210,6.85743077,222.02,221.98,2.2525]
[1734445782612,2.2519,222.04,222.0,2.2523]
[1734445782821,6.85743077,222.03,222.0,2.2523]
[1734445783206,2.2519,222.04,222.01,2.2522]
[1734445783415,4.9392,222.14,222.01,6.85743077]
[1734445783615,6.85743077,222.08,222.01,6.85743077]
[1734445783915,6.85743077,222.06,221.99,3.4068]
[1734445784217,6.85743077,222.04,221.99,3.4068]
[1734445785516,9.10943077,222.04,222.0,2.2523]
[1734445785713,6.85743077,222.04,221.99,3.4068]